fUSD/lending_fUSD_20250623
["ID","MTS","AMOUNT","RATE_DAILY","PERIOD"]
[367132337,1750665091153,-490.0,0.00028219,3]
[367132338,1750665091162,-735.78,0.00028219,3]
[367132339,1750665091170,-636.12,0.00028219,3]
[367132340,1750665091179,-2393.15,0.00028219,3]
[367132341,1750665091189,-490.0,0.00028219,3]
[367132342,1750665091198,-524.5421703,0.00028219,3]
[367132343,1750665091207,-490.0,0.00028219,3]
[367132344,1750665091216,-494.91,0.00028219,3]
[367132345,1750665091226,-151.0,0.00028219,7]
[367132346,1750665091236,-490.0,0.00028219,3]
[367132347,1750665091245,-682.52,0.00028219,3]
[367132348,1750665091254,-490.0,0.00028219,3]
[367132349,1750665091263,-992.14,0.00028219,3]
[367132350,1750665091272,-490.0,0.00028219,3]
[367132351,1750665091281,-792.47,0.00028219,3]
[367132352,1750665091290,-490.0,0.00028219,3]
[367132353,1750665091299,-694.47,0.00028219,3]
[367132354,1750665091308,-571.27,0.00028219,3]
[367132355,1750665091317,-151.0,0.00028219,7]
[367132356,1750665091326,-642.38,0.00028219,3]
[367132357,1750665091335,-490.0,0.00028219,3]
[367132358,1750665091344,-490.0,0.00028219,3]
[367132359,1750665091353,-1226.31,0.00028219,3]
[367132360,1750665091362,-490.0,0.00028219,3]
[367132361,1750665091372,-490.0,0.00028219,3]
[367132362,1750665091380,-152.501955,0.00028219,7]
[367132363,1750665091390,-1123.21,0.00028219,3]
[367132364,1750665091399,-490.0,0.00028219,3]
[367132365,1750665091408,-490.0,0.00028219,3]
[367132366,1750665091418,-294.52875,0.00028219,7]
[367132367,1750665091427,-1133.23,0.00028219,3]
[367132368,1750665091436,-518.3,0.00028219,3]
[367132369,1750665091445,-490.0,0.00028219,3]
[367132370,1750665091455,-490.0,0.00028219,3]
[367132371,1750665091463,-670.7,0.00028219,3]
[367132372,1750665091473,-294.52875,0.00028219,7]
[367132373,1750665091482,-490.0,0.00028219,3]
[367132374,1750665091491,-162.94734924,0.00028219,3]
[367132375,1750665091500,-490.0,0.00028219,3]
[367132376,1750665091510,-578.64,0.00028219,3]
[367132377,1750665091519,-993.54,0.00028219,3]
[367132378,1750665091529,-490.0,0.00028219,3]
[367132379,1750665091538,-490.0,0.00028219,3]
[367132380,1750665091547,-967.76,0.00028219,3]
[367132381,1750665091556,-490.0,0.00028219,3]
[367132382,1750665091565,-508.66,0.00028219,3]
[367132383,1750665091575,-490.0,0.00028219,3]
[367132384,1750665091584,-3755.94,0.00028219,3]
[367132385,1750665091594,-490.0,0.00028219,3]
[367132386,1750665091603,-582.53,0.00028219,3]
[367132387,1750665091613,-505.58,0.00028219,3]
[367132388,1750665091623,-2144.51,0.00028219,3]
[367132389,1750665091632,-359.12938407,0.00028219,3]
[367132390,1750665091642,-490.0,0.00028219,3]
[367132391,1750665091652,-490.0,0.00028219,3]
[367132392,1750665091662,-490.0,0.00028219,3]
[367132393,1750665091671,-490.0,0.00028219,3]
[367132394,1750665091681,-329.93341826,0.00028219,3]
[367132395,1750665091691,-490.0,0.00028219,3]
[367132396,1750665091701,-301.88,0.00028219,3]
[367132397,1750665091711,-561.18,0.00028219,3]
[367132398,1750665091720,-528.73,0.00028219,3]
[367132399,1750665091730,-1111.73,0.00028219,3]
[367132400,1750665091740,-949.02,0.00028219,3]
[367132401,1750665091750,-490.0,0.00028219,3]
[367132402,1750665091760,-490.0,0.00028219,3]
[367132403,1750665091769,-490.0,0.00028219,3]
[367132404,1750665091779,-4587.21,0.00028219,3]
[367132405,1750665091789,-490.0,0.00028219,3]
[367132406,1750665091799,-525.95,0.00028219,3]
[367132407,1750665091809,-621.21,0.00028219,3]
[367132408,1750665091819,-323.95999062,0.00028219,3]
[367132409,1750665091828,-490.0,0.00028219,3]
[367132410,1750665091838,-1169.57,0.00028219,3]
[367132411,1750665091848,-2316.39,0.00028219,3]
[367132412,1750665091858,-490.0,0.00028219,3]
[367132413,1750665091868,-490.0,0.00028219,3]
[367132414,1750665091878,-956.96,0.00028219,3]
[367132415,1750665091887,-1387.9,0.00028219,3]
[367132416,1750665091898,-691.28,0.00028219,3]
[367132417,1750665091908,-10717.07,0.00028219,3]
[367132418,1750665091918,-917.45,0.00028219,3]
[367132419,1750665091929,-1088.76,0.00028219,3]
[367132420,1750665091939,-595.21,0.00028219,3]
[367132421,1750665091948,-490.0,0.00028219,3]
[367132422,1750665091958,-702.14,0.00028219,3]
[367132423,1750665091967,-490.0,0.00028219,3]
[367132424,1750665091978,-864.46,0.00028219,3]
[367132425,1750665091988,-1079.72,0.00028219,3]
[367132426,1750665091997,-490.0,0.00028219,3]
[367132427,1750665092009,-490.0,0.00028219,3]
[367132428,1750665092019,-817.64,0.00028219,3]
[367132429,1750665092029,-774.97,0.00028219,3]
[367132430,1750665092038,-4643.17,0.00028219,3]
[367132431,1750665092048,-1077.61,0.00028219,3]
[367132432,1750665092061,-490.0,0.00028219,3]
[367132433,1750665092071,-1165.94,0.00028219,3]
[367132434,1750665092081,-4614.84,0.00028219,3]
[367132435,1750665092091,-490.0,0.00028219,3]
[367132436,1750665092103,-490.0,0.00028219,3]
[367132437,1750665092113,-490.0,0.00028219,3]
[367132438,1750665092123,-2049.2,0.00028219,3]
[367132439,1750665092134,-652.3,0.00028219,3]
[367132440,1750665092144,-809.74,0.00028219,3]
[367132441,1750665092154,-490.0,0.00028219,3]
[367132442,1750665092164,-151.0,0.00028219,7]
[367132443,1750665092176,-1363.03,0.00028219,3]
[367132444,1750665092186,-490.0,0.00028219,3]
[367132445,1750665092196,-553.84,0.00028219,3]
[367132446,1750665092206,-508.05,0.00028219,3]
[367132447,1750665092217,-151.0,0.00028219,7]
[367132448,1750665092226,-1489.9,0.00028219,3]
[367132449,1750665092236,-490.0,0.00028219,3]
[367132450,1750665092246,-577.04433928,0.00028219,3]
[367132451,1750665092255,-490.0,0.00028219,3]
[367132452,1750665092264,-1190.7,0.00028219,3]
[367132453,1750665092274,-215.544139,0.00028219,7]
[367132454,1750665092284,-1200.07,0.00028219,3]
[367132455,1750665092294,-1009.65,0.00028219,3]
[367132456,1750665092304,-1280.57,0.00028219,3]
[367132457,1750665092314,-490.0,0.00028219,3]
[367132458,1750665092325,-490.0,0.00028219,3]
[367132459,1750665092335,-490.0,0.00028219,3]
[367132460,1750665092346,-490.0,0.00028219,3]
[367132461,1750665092355,-548.2089135,0.00028219,3]
[367132462,1750665092365,-1170.78,0.00028219,3]
[367132463,1750665092377,-490.0,0.00028219,3]
[367132464,1750665092387,-215.544139,0.00028219,7]
[367132465,1750665092397,-490.0,0.00028219,3]
[367132466,1750665092407,-490.0,0.00028219,3]
[367132467,1750665092417,-220.98768604,0.00028219,3]
[367132468,1750665092428,-956.44,0.00028219,3]
[367132469,1750665092438,-572.0,0.00028219,3]
[367132470,1750665092448,-490.0,0.00028219,3]
[367132471,1750665092458,-490.0,0.00028219,3]
[367132472,1750665092468,-869.62,0.00028219,3]
[367132473,1750665092477,-490.0,0.00028219,3]
[367132474,1750665092487,-1423.29,0.00028219,3]
[367132475,1750665092498,-539.83,0.00028219,3]
[367132476,1750665092508,-992.64,0.00028219,3]
[367132477,1750665092519,-490.0,0.00028219,3]
[367132478,1750665092529,-3180.4,0.00028219,3]
[367132479,1750665092540,-747.63,0.00028219,3]
[367132480,1750665092549,-151.0,0.00028219,7]
[367132481,1750665092559,-490.0,0.00028219,3]
[367132482,1750665092569,-490.0,0.00028219,3]
[367132483,1750665092579,-445.995582,0.00028219,7]
[367132484,1750665092589,-490.0,0.00028219,3]
[367132485,1750665092599,-1140.49,0.00028219,3]
[367132486,1750665092610,-615.7,0.00028219,3]
[367132487,1750665092620,-247.45871265,0.00028219,3]
[367132488,1750665092630,-852.0,0.00028219,3]
[367132489,1750665092641,-1016.47,0.00028219,3]
[367132490,1750665092651,-490.0,0.00028219,3]
[367132491,1750665092662,-445.995582,0.00028219,7]
[367132492,1750665092672,-966.13,0.00028219,3]
[367132493,1750665092681,-2112.61,0.00028219,3]
[367132494,1750665092691,-1260.84,0.00028219,3]
[367132495,1750665092701,-575.92,0.00028219,3]
[367132496,1750665092711,-490.0,0.00028219,3]
[367132497,1750665092720,-926.89,0.00028219,3]
[367132498,1750665092730,-699.39,0.00028219,3]
[367132499,1750665092740,-661.4,0.00028219,3]
[367132500,1750665092750,-543.13,0.00028219,3]
[367132501,1750665092760,-150.39110727,0.00028219,3]
[367132502,1750665092770,-362.28422694,0.00028219,3]
[367132503,1750665092780,-7307.56,0.00028219,3]
[367132504,1750665092790,-1188.57,0.00028219,3]
[367132505,1750665092800,-1275.33,0.00028219,3]
[367132506,1750665092810,-490.0,0.00028219,3]
[367132507,1750665092820,-649.03,0.00028219,3]
[367132508,1750665092830,-1148.8,0.00028219,3]
[367132509,1750665092840,-490.0,0.00028219,3]
[367132510,1750665092850,-490.0,0.00028219,3]
[367132511,1750665092860,-1769.62,0.00028219,3]
[367132512,1750665092870,-490.0,0.00028219,3]
[367132513,1750665092880,-1684.74,0.00028219,3]
[367132514,1750665092890,-1245.46,0.00028219,3]
[367132515,1750665092901,-490.0,0.00028219,3]
[367132516,1750665092911,-490.0,0.00028219,3]
[367132517,1750665092921,-490.0,0.00028219,3]
[367132518,1750665092938,-490.0,0.00028219,3]
[367132519,1750665092948,-946.71,0.00028219,3]
[367132520,1750665092958,-2328.53,0.00028219,3]
[367132521,1750665092969,-1790.2,0.00028219,3]
[367132522,1750665092981,-490.0,0.00028219,3]
[367132523,1750665092991,-490.0,0.00028219,3]
[367132524,1750665093002,-490.0,0.00028219,3]
[367132525,1750665093012,-490.0,0.00028219,3]
[367132526,1750665093023,-490.0,0.00028219,3]
[367132527,1750665093032,-490.0,0.00028219,3]
[367132528,1750665093042,-490.0,0.00028219,3]
[367132529,1750665093052,-490.0,0.00028219,3]
[367132530,1750665093063,-490.0,0.00028219,3]
[367132531,1750665093074,-490.0,0.00028219,3]
[367132532,1750665093084,-1416.9,0.00028219,3]
[367132533,1750665093094,-569.78,0.00028219,3]
[367132534,1750665093105,-490.0,0.00028219,3]
[367132535,1750665093115,-490.0,0.00028219,3]
[367132536,1750665093125,-1584.55,0.00028219,3]
[367132537,1750665093135,-490.0,0.00028219,3]
[367132538,1750665093146,-1146.51,0.00028219,3]
[367132539,1750665093156,-721.25,0.00028219,3]
[367132540,1750665093166,-1328.97,0.00028219,3]
[367132541,1750665093176,-151.0,0.00028219,7]
[367132542,1750665093186,-1180.0,0.00028219,3]
[367132543,1750665093195,-1878.33,0.00028219,3]
[367132544,1750665093205,-490.0,0.00028219,3]
[367132545,1750665093215,-1168.59,0.00028219,3]
[367132546,1750665093226,-1333.53,0.00028219,3]
[367132547,1750665093236,-1620.62,0.00028219,3]
[367132548,1750665093246,-631.77,0.00028219,3]
[367132549,1750665093256,-1030.66,0.00028219,3]
[367132550,1750665093267,-428.88825735,0.00028219,3]
[367132551,1750665093277,-490.0,0.00028219,3]
[367132552,1750665093287,-604.81338743,0.00028219,3]
[367132553,1750665093297,-1543.7,0.00028219,3]
[367132554,1750665093307,-490.0,0.00028219,3]
[367132555,1750665093317,-490.0,0.00028219,3]
[367132556,1750665093327,-242.76854254,0.00028219,3]
[367132557,1750665093337,-490.0,0.00028219,3]
[367132558,1750665093347,-490.0,0.00028219,3]
[367132559,1750665093356,-811.77,0.00028219,3]
[367132560,1750665093366,-1156.18,0.00028219,3]
[367132561,1750665093376,-1152.47,0.00028219,3]
[367132562,1750665093386,-1328.16,0.00028219,3]
[367132563,1750665093397,-892.28,0.00028219,3]
[367132564,1750665093407,-490.0,0.00028219,3]
[367132565,1750665093417,-926.55,0.00028219,3]
[367132566,1750665093427,-5128.86,0.00028219,3]
[367132567,1750665093437,-490.0,0.00028219,3]
[367132568,1750665093447,-490.0,0.00028219,3]
[367132569,1750665093456,-929.97,0.00028219,3]
[367132570,1750665093466,-895.24,0.00028219,3]
[367132571,1750665093476,-490.0,0.00028219,3]
[367132572,1750665093486,-514.94,0.00028219,3]
[367132573,1750665093496,-647.41,0.00028219,3]
[367132574,1750665093505,-1059.11,0.00028219,3]
[367132575,1750665093516,-3162.98,0.00028219,3]
[367132576,1750665093525,-10436.94,0.00028219,3]
[367132577,1750665093536,-490.0,0.00028219,3]
[367132578,1750665093545,-490.0,0.00028219,3]
[367132579,1750665093555,-1189.53,0.00028219,3]
[367132580,1750665093565,-2195.9,0.00028219,3]
[367132581,1750665093575,-2202.71,0.00028219,3]
[367132582,1750665093586,-624.22,0.00028219,3]
[367132583,1750665093596,-1149.03,0.00028219,3]
[367132584,1750665093606,-4270.68,0.00028219,3]
[367132585,1750665093616,-534.25,0.00028219,3]
[367132586,1750665093625,-545.8,0.00028219,3]
[367132587,1750665093635,-490.0,0.00028219,3]
[367132588,1750665093646,-490.0,0.00028219,3]
[367132589,1750665093656,-490.0,0.00028219,3]
[367132590,1750665093667,-490.0,0.00028219,3]
[367132591,1750665093677,-1252.75,0.00028219,3]
[367132592,1750665093687,-1146.08,0.00028219,3]
[367132593,1750665093697,-1122.82,0.00028219,3]
[367132594,1750665093707,-490.0,0.00028219,3]
[367132595,1750665093717,-490.0,0.00028219,3]
[367132596,1750665093727,-2352.77,0.00028219,3]
[367132597,1750665093738,-490.0,0.00028219,3]
[367132598,1750665093749,-623.98,0.00028219,3]
[367132599,1750665093760,-490.0,0.00028219,3]
[367132600,1750665093770,-1981.72,0.00028219,3]
[367132601,1750665093781,-2769.06,0.00028219,3]
[367132602,1750665093792,-502.64,0.00028219,3]
[367132603,1750665093802,-679.042121,0.00028219,7]
[367132604,1750665093812,-490.0,0.00028219,3]
[367132605,1750665093822,-490.0,0.00028219,3]
[367132606,1750665093832,-679.042121,0.00028219,7]
[367132607,1750665094122,-1210.66,0.00028219,3]
[367132608,1750665094132,-1247.42,0.00028219,3]
[367132609,1750665094142,-544.19,0.00028219,3]
[367132610,1750665094151,-490.0,0.00028219,3]
[367132611,1750665094161,-707.04,0.00028219,3]
[367132612,1750665094171,-490.0,0.00028219,3]
[367132613,1750665094180,-1979.61,0.00028219,3]
[367132614,1750665094190,-1987.6,0.00028219,3]
[367132615,1750665094200,-10751.97,0.00028219,3]
[367132616,1750665094209,-490.0,0.00028219,3]
[367132617,1750665094219,-1076.76,0.00028219,3]
[367132618,1750665094228,-3423.31,0.00028219,3]
[367132619,1750665094238,-2864.01,0.00028219,3]
[367132620,1750665094247,-490.0,0.00028219,3]
[367132621,1750665094257,-490.0,0.00028219,3]
[367132622,1750665094266,-490.0,0.00028219,3]
[367132623,1750665094276,-633.23,0.00028219,3]
[367132624,1750665094287,-490.0,0.00028219,3]
[367132625,1750665094296,-490.0,0.00028219,3]
[367132626,1750665094306,-490.0,0.00028219,3]
[367132627,1750665094316,-1075.42,0.00028219,3]
[367132628,1750665094326,-2220.11,0.00028219,3]
[367132629,1750665094335,-857.04,0.00028219,3]
[367132630,1750665094345,-769.91,0.00028219,3]
[367132631,1750665094355,-2716.97,0.00028219,3]
[367132632,1750665094365,-1140.15,0.00028219,3]
[367132633,1750665094375,-523.71,0.00028219,3]
[367132634,1750665094385,-1223.01,0.00028219,3]
[367132635,1750665094395,-490.0,0.00028219,3]
[367132636,1750665094405,-490.0,0.00028219,3]
[367132637,1750665094415,-490.0,0.00028219,3]
[367132638,1750665094425,-624.14,0.00028219,3]
[367132639,1750665094435,-2084.11,0.00028219,3]
[367132640,1750665094445,-490.0,0.00028219,3]
[367132641,1750665094454,-1554.38,0.00028219,3]
[367132642,1750665094464,-1131.67,0.00028219,3]
[367132643,1750665094474,-1755.29,0.00028219,3]
[367132644,1750665094483,-1845.26,0.00028219,3]
[367132645,1750665094493,-1112.49,0.00028219,3]
[367132646,1750665094503,-1617.72,0.00028219,3]
[367132647,1750665094514,-1481.37,0.00028219,3]
[367132648,1750665094524,-1167.6,0.00028219,3]
[367132649,1750665094533,-1688.6,0.00028219,3]
[367132650,1750665094544,-986.26,0.00028219,3]
[367132651,1750665094554,-1394.31,0.00028219,3]
[367132652,1750665094563,-359.85708488,0.00028219,3]
[367132653,1750665094573,-5812.93,0.00028219,3]
[367132654,1750665094583,-1040.55,0.00028219,3]
[367132655,1750665094593,-490.0,0.00028219,3]
[367132656,1750665094603,-490.0,0.00028219,3]
[367132657,1750665094613,-490.0,0.00028219,3]
[367132658,1750665094623,-4291.55,0.00028219,3]
[367132659,1750665094632,-933.58,0.00028219,3]
[367132660,1750665094642,-1044.21,0.00028219,3]
[367132661,1750665094652,-1656.36,0.00028219,3]
[367132662,1750665094661,-490.0,0.00028219,3]
[367132663,1750665094671,-1188.44,0.00028219,3]
[367132664,1750665094682,-490.0,0.00028219,3]
[367132665,1750665094691,-490.0,0.00028219,3]
[367132666,1750665094701,-712.63,0.00028219,3]
[367132667,1750665094711,-955.97,0.00028219,3]
[367132668,1750665094721,-490.0,0.00028219,3]
[367132669,1750665094730,-490.0,0.00028219,3]
[367132670,1750665094740,-490.0,0.00028219,3]
[367132671,1750665094750,-1229.83,0.00028219,3]
[367132672,1750665094760,-213.67803298,0.00028219,3]
[367132673,1750665094769,-490.0,0.00028219,3]
[367132674,1750665094779,-604.61674075,0.00028219,3]
[367132675,1750665094788,-725.05,0.00028219,3]
[367132676,1750665094798,-1130.89,0.00028219,3]
[367132677,1750665094808,-505.79,0.00028219,3]
[367132678,1750665094818,-300.0,0.00028219,3]
[367132679,1750665094827,-551.22,0.00028219,3]
[367132680,1750665094837,-490.0,0.00028219,3]
[367132681,1750665094847,-490.0,0.00028219,3]
[367132682,1750665094856,-490.0,0.00028219,3]
[367132683,1750665094866,-5782.36,0.00028219,3]
[367132684,1750665094876,-881.99,0.00028219,3]
[367132685,1750665094886,-8133.36,0.00028219,3]
[367132686,1750665094896,-1196.57,0.00028219,3]
[367132687,1750665094906,-1074.01,0.00028219,3]
[367132688,1750665094916,-1044.39,0.00028219,60]
[367132689,1750665094927,-490.0,0.00028219,3]
[367132690,1750665094939,-490.0,0.00028219,3]
[367132691,1750665094949,-2487.78,0.00028219,3]
[367132692,1750665094959,-1615.17,0.00028219,3]
[367132693,1750665094969,-490.0,0.00028219,3]
[367132694,1750665094978,-1010.88,0.00028219,3]
[367132695,1750665094988,-2044.71,0.00028219,3]
[367132696,1750665094998,-607.3,0.00028219,3]
[367132697,1750665095009,-1117.87,0.00028219,3]
[367132698,1750665095019,-1227.5,0.00028219,3]
[367132699,1750665095029,-2305.53,0.00028219,3]
[367132700,1750665095038,-151.0,0.00028219,7]
[367132701,1750665095048,-722.87,0.00028219,3]
[367132702,1750665095057,-943.84,0.00028219,3]
[367132703,1750665095067,-490.0,0.00028219,3]
[367132704,1750665095076,-5428.27,0.00028219,3]
[367132705,1750665095086,-874.3,0.00028219,3]
[367132706,1750665095095,-1288.28,0.00028219,3]
[367132707,1750665095104,-490.0,0.00028219,3]
[367132708,1750665095113,-23116.75,0.00028219,3]
[367132709,1750665095123,-1226.13,0.00028219,3]
[367132710,1750665095133,-490.0,0.00028219,3]
[367132711,1750665095143,-490.0,0.00028219,3]
[367132712,1750665095153,-506.19,0.00028219,3]
[367132713,1750665095163,-5920.75,0.00028219,3]
[367132714,1750665095173,-3800.08,0.00028219,3]
[367132715,1750665095183,-1255.63,0.00028219,3]
[367132716,1750665095192,-490.0,0.00028219,3]
[367132717,1750665095202,-490.0,0.00028219,3]
[367132718,1750665095211,-1199.86,0.00028219,3]
[367132719,1750665095221,-490.0,0.00028219,3]
[367132720,1750665095231,-490.0,0.00028219,3]
[367132721,1750665095242,-490.0,0.00028219,3]
[367132722,1750665095252,-2064.36,0.00028219,3]
[367132723,1750665095262,-151.0,0.00028219,7]
[367132724,1750665095271,-1109.69,0.00028219,3]
[367132725,1750665095282,-1771.9,0.00028219,3]
[367132726,1750665095291,-917.32,0.00028219,3]
[367132727,1750665095300,-605.35,0.00028219,3]
[367132728,1750665095310,-1200.51,0.00028219,3]
[367132729,1750665095320,-807.01,0.00028219,3]
[367132730,1750665095330,-3510.35,0.00028219,3]
[367132731,1750665095340,-490.0,0.00028219,3]
[367132732,1750665095350,-490.0,0.00028219,3]
[367132733,1750665095360,-1345.63,0.00028219,3]
[367132734,1750665095370,-517.745421,0.00028219,3]
[367132735,1750665095380,-3540.17,0.00028219,3]
[367132736,1750665095390,-1286.1,0.00028219,3]
[367132737,1750665095401,-584.71,0.00028219,3]
[367132738,1750665095411,-490.0,0.00028219,3]
[367132739,1750665095421,-269.681326,0.00028219,3]
[367132740,1750665095431,-4365.41,0.00028219,3]
[367132741,1750665095441,-740.92,0.00028219,3]
[367132742,1750665095451,-3910.06,0.00028219,3]
[367132743,1750665095461,-720.12,0.00028219,3]
[367132744,1750665095470,-1622.01,0.00028219,3]
[367132745,1750665095480,-516.11,0.00028219,3]
[367132746,1750665095489,-2230.53,0.00028219,3]
[367132747,1750665095499,-1195.43,0.00028219,3]
[367132748,1750665095509,-490.0,0.00028219,3]
[367132749,1750665095519,-2134.31,0.00028219,3]
[367132750,1750665095528,-954.76,0.00028219,3]
[367132751,1750665095538,-1421.58,0.00028219,3]
[367132752,1750665095547,-490.0,0.00028219,3]
[367132753,1750665095557,-2473.53,0.00028219,3]
[367132754,1750665095567,-155.631381,0.00028219,3]
[367132755,1750665095576,-1392.26,0.00028219,3]
[367132756,1750665095585,-490.0,0.00028219,3]
[367132757,1750665095595,-490.0,0.00028219,3]
[367132758,1750665095604,-151.0,0.00028219,7]
[367132759,1750665095614,-1398.46,0.00028219,3]
[367132760,1750665095624,-490.0,0.00028219,3]
[367132761,1750665095633,-490.0,0.00028219,3]
[367132762,1750665095644,-6322.71,0.00028219,3]
[367132763,1750665095653,-956.28,0.00028219,3]
[367132764,1750665095663,-490.0,0.00028219,3]
[367132765,1750665095672,-490.0,0.00028219,3]
[367132766,1750665095681,-502.66,0.00028219,3]
[367132767,1750665095691,-490.0,0.00028219,3]
[367132768,1750665095701,-490.0,0.00028219,3]
[367132769,1750665095711,-658.813489,0.00028219,3]
[367132770,1750665095720,-490.0,0.00028219,3]
[367132771,1750665095730,-464.847149,0.00028219,3]
[367132772,1750665095739,-753.53849467,0.00028393,2]
[367132773,1750665095749,-1768.85,0.000284,2]
[367132774,1750665095758,-1086.82644028,0.00028417,19]
[367132775,1750665095768,-150.16,0.00028451,2]
[367132776,1750665095777,-300.0,0.00028492,10]
[367132777,1750665095787,-1069.47,0.00028492,3]
[367132778,1750665095797,-7246.61226064,0.00028492,2]
[367132779,1750665095807,-490.0,0.00028493,3]
[367132780,1750665095816,-490.0,0.00028493,3]
[367132781,1750665095825,-626.23850534,0.00028493,3]
[367132782,1750665095834,-490.0,0.00028493,3]
[367132783,1750665095844,-490.0,0.00028493,3]
[367132784,1750665095853,-490.0,0.00028493,3]
[367132785,1750665095862,-490.0,0.00028493,3]
[367132786,1750665095872,-490.0,0.00028493,3]
[367132787,1750665095881,-490.0,0.00028493,3]
[367132788,1750665095892,-500.0,0.00028493,3]
[367132789,1750665095902,-490.0,0.00028493,3]
[367132790,1750665095911,-490.0,0.00028493,3]
[367132791,1750665095921,-490.0,0.00028493,3]
[367132792,1750665095933,-490.0,0.00028493,3]
[367132793,1750665095942,-571.81483115,0.00028493,3]
[367132794,1750665095952,-490.0,0.00028493,3]
[367132795,1750665095961,-490.0,0.00028493,3]
[367132796,1750665095971,-490.0,0.00028493,3]
[367132797,1750665095981,-490.0,0.00028493,3]
[367132798,1750665095990,-490.0,0.00028493,3]
[367132799,1750665096000,-490.0,0.00028493,3]
[367132800,1750665096009,-490.0,0.00028493,3]
[367132801,1750665096020,-490.0,0.00028493,3]
[367132802,1750665096029,-490.0,0.00028493,3]
[367132803,1750665096038,-490.0,0.00028493,3]
[367132804,1750665096048,-398.81,0.00028493,3]
[367132805,1750665096057,-490.0,0.00028493,3]
[367132806,1750665096067,-490.0,0.00028493,3]
[367132807,1750665096077,-490.0,0.00028493,3]
[367132808,1750665096086,-490.0,0.00028493,3]
[367132809,1750665096096,-927.67,0.00028493,3]
[367132810,1750665096106,-490.0,0.00028493,3]
[367132811,1750665096115,-490.0,0.00028493,3]
[367132812,1750665096125,-1000.0,0.00028493,3]
[367132813,1750665096135,-490.0,0.00028493,3]
[367132814,1750665096145,-490.0,0.00028493,3]
[367132815,1750665096154,-490.0,0.00028493,3]
[367132816,1750665096163,-280.0,0.00028493,3]
[367132817,1750665096172,-668.01,0.00028493,3]
[367132818,1750665096182,-490.0,0.00028493,3]
[367132819,1750665096192,-412.35753251,0.00028493,3]
[367132820,1750665096202,-490.0,0.00028493,3]
[367132821,1750665096213,-712.2,0.00028493,3]
[367132822,1750665096222,-490.0,0.00028493,3]
[367132823,1750665096233,-598.16,0.00028493,3]
[367132824,1750665096244,-490.0,0.00028493,3]
[367132825,1750665096254,-708.42,0.00028493,3]
[367132826,1750665096264,-904.35,0.00028493,3]
[367132827,1750665096273,-490.0,0.00028493,3]
[367132828,1750665096283,-490.0,0.00028493,3]
[367132829,1750665096293,-490.0,0.00028493,3]
[367132830,1750665096303,-490.0,0.00028493,3]
[367132831,1750665096312,-490.0,0.00028493,3]
[367132832,1750665096322,-490.0,0.00028493,3]
[367132833,1750665096331,-490.0,0.00028493,3]
[367132834,1750665096342,-936.53,0.00028493,3]
[367132835,1750665096351,-490.0,0.00028493,3]
[367132836,1750665096361,-490.0,0.00028493,3]